Cogmind - Beta 15 @@@ ROGUE MODE // 2025.05.14 @ 00:09:14 Player: Infomantis Result: Destroyed by S-27 Virus with Autogun Performance ------------- Evolutions (6) 3000 Regions Visited (10) 2000 Robots Destroyed (82) 410 Value Destroyed (3343) 3343 Prototype IDs (20) 400 Alien Tech Used (2) 400 Bonus (21) 21 TOTAL SCORE: 9574 Bonus ------- Follower Combat Kills 48 Friendly Fire -27 Cogmind --------- Core Integrity 0/1150 Matter 210/300 Energy 98/100 System Corruption 7% Temperature Cool (-200) Movement Core (50) Location -4/Upper Caves Parts ------- > --- POWER (2) -------- (None) > --- PROPULSION (5) --- (None) > --- UTILITY (9) ------ Advanced Cryofiber Web Improved Coolant Injector Advanced Coolant Injector Machine Analyzer Improved Signal Interpreter Terrain Scan Processor Advanced Hacking Suite > --- WEAPON (3) ------- (None) > --- INVENTORY (5) ---- Meta Core Advanced Cooling System Large Storage Unit Improved Force Field IN-MT5's Pitchfork "Insurrection" (19) Peak State ------------ > --- POWER ------------ Improved Ion Engine Neutrino Core > --- PROPULSION ------- Improved Antigrav System Improved Gyrokinetic Inverter Improved Linear Gravjet Improved Linear Gravjet > --- UTILITY ---------- Advanced Cryofiber Web Improved Coolant Injector Medium Storage Unit Machine Analyzer Improved Signal Interpreter Terrain Scan Processor Advanced Hacking Suite Advanced System Shield Authchip [Weapon] > --- WEAPON ----------- Advanced Variable Charge Gun Light Antimatter Cannon Improved Datajack > --- INVENTORY -------- Meta Core Advanced Cooling System Large Storage Unit Energy Well Advanced Transmission Jammer Improved Force Field High-powered Shock Rifle Advanced Variable Charge Gun Advanced Variable Charge Gun [Rating: 99] Favorites ----------- Power Micro Fission Core Engine Light Ion Engine Power Core Micro Fission Core Reactor Heavy Antimatter Reactor Propulsion Wheel Treads Light Treads Leg Armored Leg Wheel Wheel Hover Unit Improved Gyrokinetic Inverter Utility Improved Signal Interpreter Device Advanced Cooling System Storage High-capacity Storage Unit Processor Improved Signal Interpreter Hackware Makeshift System Shield Protection Improved Heavy Armor Plating Weapon Hardcell Cannon Energy Gun Riot Gun Energy Cannon Heavy Phase Cannon Ballistic Gun Gauss Rifle Ballistic Cannon Hardcell Cannon Launcher Subdweller Shrapnel Launcher Special Weapon Improved Remote Datajack Impact Weapon Shock Maul Special Melee Weapon Improved Datajack Build | -11 -10 -10 -7 -5 -5 -5 -5 -4 -4 -4 ------- Run | Yrd Mat Sub Scr Fac Upp Upp Zhi Pro Fac Upp Slots Evolved 12 | . . . . 10 . . . . 2 . Power 1 | . . . . 1 . . . . . . Propulsion 3 | . . . . 2 . . . . 1 . Utility 7 | . . . . 6 . . . . 1 . Weapon 1 | . . . . 1 . . . . . . Parts Attached 123 | 8 3 8 5 40 4 2 8 2 42 1 Power 18 | 1 . 1 2 5 2 . 1 . 6 . Engine 9 | 1 . 1 2 2 1 . . . 2 . Core 6 | . . . . 3 1 . . . 2 . Reactor 3 | . . . . . . . 1 . 2 . Propulsion 28 | 2 . . 2 9 1 . . 1 13 . Treads 8 | 2 . . . 2 1 . . . 3 . Leg 3 | . . . . 2 . . . . 1 . Wheel 11 | . . . 2 5 . . . 1 3 . Hover 6 | . . . . . . . . . 6 . Flight . | . . . . . . . . . . . Utility 43 | 2 1 1 1 17 . 1 5 . 15 . Device 16 | 1 . 1 . 4 . 1 1 . 8 . Storage 7 | 1 1 . 1 1 . . 1 . 2 . Processor 6 | . . . . 4 . . 1 . 1 . Hackware 7 | . . . . 3 . . . . 4 . Protection 7 | . . . . 5 . . 2 . . . Artifact . | . . . . . . . . . . . Weapon 34 | 3 2 6 . 9 1 1 2 1 8 1 Energy Gun 11 | 2 . 3 . . . . . 1 5 . Energy Cannon 4 | . . . . 3 . . . . 1 . Ballistic Gun 2 | 1 . . . 1 . . . . . . Ballistic Cannon 11 | . 2 3 . 2 1 1 1 . 1 . Launcher 1 | . . . . 1 . . . . . . Special Weapon 3 | . . . . 1 . . 1 . . 1 Impact Weapon 1 | . . . . 1 . . . . . . Slashing Weapon . | . . . . . . . . . . . Piercing Weapon . | . . . . . . . . . . . Special Melee Weapon 1 | . . . . . . . . . 1 . Unidentified Prototypes 9 | . . . . 1 . . 5 . 3 . Corrupted Parts 2 | . . 1 . . . . . 1 . . System Corruption 11 | . . 1 . . . . . 10 . . Parts Lost 43 | . . 1 . 11 . 1 . 2 28 . Power 6 | . . 1 . 1 . . . . 4 . Propulsion 18 | . . . . 5 . . . 2 11 . Utility 11 | . . . . 4 . 1 . . 6 . Weapon 8 | . . . . 1 . . . . 7 . Highest Loss Streak 13 | . . 1 . 4 . 1 . 1 13 . To Critical Strikes 1 | . . . . . . . . . 1 . Average Backups 16 | 3 11 11 21 15 19 19 19 20 11 4 Power . | 1 2 . . . 1 1 . 1 . . Propulsion 1 | . 1 . 2 . 2 3 1 1 . . Utility 6 | . 3 2 8 6 7 7 8 10 5 3 Weapon 5 | 1 5 5 6 5 6 5 4 4 3 . Tool/Special . | . . . . . . . . . . . Unused Backups 42 | . . 6 6 11 2 1 5 . 7 4 Power 2 | . . 1 . . . . 1 . . . Propulsion 3 | . . . . . . . 1 . 2 . Utility 22 | . . 2 1 6 2 1 2 . 5 3 Weapon 11 | . . 3 4 3 . . 1 . . . Tool/Special 4 | . . . 1 2 . . . . . 1 Average Slot Usage (%) 88 | . 100 94 86 95 93 93 91 87 68 36 Engine 7 | . 14 12 14 3 3 5 1 . 1 . Core 2 | . . . . 6 7 5 5 5 2 . Treads 12 | . 28 28 17 7 3 5 4 5 3 . Wheel 9 | . . . 10 12 17 17 17 10 4 . Device 11 | . 14 14 7 13 12 13 12 11 10 15 Storage 8 | . 14 10 14 4 5 5 5 5 3 . Processor 6 | . . . . 8 11 11 13 17 13 15 Hackware 1 | . . . . 8 . . . . 1 5 Protection 3 | . . . . 6 9 7 4 5 1 . Energy Gun 5 | . 4 3 16 . . . . 3 4 . Ballistic Gun 1 | . 4 . . 1 5 3 4 . 1 . Ballistic Cannon 10 | . 18 24 5 8 8 11 10 11 4 . Peak Build Rating 99 | 8 11 17 26 72 74 76 82 80 99 42 Average Rating 44 | 5 9 13 17 58 72 73 75 78 73 37 On Entrance 43 | . 8 10 15 26 71 73 76 78 80 37 Naked Turns . | . . . . . . . . . . . Heaviest Build 243 | 12 32 38 224 243 108 111 109 108 128 3 Greatest Support 130 | 40 40 40 40 43 30 30 30 30 130 3 Greatest Overweight (x) 13 | . . . 13 7 3 3 3 10 10 . Average Overweight (x) 2 | . . . 3 2 3 3 2 5 . . Largest Inventory Capacity 35 | 8 15 15 35 35 20 20 20 20 20 5 Average Capacity 18 | 7 14 12 24 16 20 20 20 20 11 5 Most Carried 35 | 8 15 15 35 34 20 20 20 20 20 5 Average Carried 17 | 3 11 12 22 15 19 19 19 20 11 4 Final Capacity 35 | 8 15 15 35 20 20 20 20 20 5 5 Final Carried 35 | 8 14 15 35 20 20 20 20 20 5 5 Class Distribution -------------------- 38% | Mutant 14% | Scavenger-Skirmisher 14% | Scavenger-Tank 12% | Hauler-Mutant 5% | Scavenger-Mutant 4% | Derelict-Tank 4% | Skirmisher 3% | Scavenger-Gunner Dominant Class ---------------- Mutant | -10/Materials Mutant | -10/Subcaves Mutant | -7/Scraptown Derelict-Tank | -5/Factory Scavenger-Tank | -5/Upper Caves Scavenger-Tank | -5/Upper Caves Scavenger-Skirmisher | -5/Zhirov Scavenger-Skirmisher | -4/Proximity Caves Scavenger-Skirmisher | -4/Factory Mutant | -4/Upper Caves Resources | -11 -10 -10 -7 -5 -5 -5 -5 -4 -4 -4 ----------- Run | Yrd Mat Sub Scr Fac Upp Upp Zhi Pro Fac Upp Matter Collected 4602 | 248 25 566 405 1310 260 89 556 363 780 . Remotely . | . . . . . . . . . . . Salvage Created 3190 | 169 . 201 . 991 81 26 461 296 965 . Parts 142 | 16 . 10 . 40 9 4 10 8 45 . Haulers Intercepted 1 | . . . . 1 . . . . . . Recyclers Shooed 3 | . . . . . . . . . 3 . Parts Field Recycled . | . . . . . . . . . . . Retrieved Matter . | . . . . . . . . . . . Parts Self-Destructed 36 | . . 17 . . 6 4 4 5 . . Prevented . | . . . . . . . . . . . Kills | -11 -10 -10 -7 -5 -5 -5 -5 -4 -4 -4 ------- Run | Yrd Mat Sub Scr Fac Upp Upp Zhi Pro Fac Upp Combat Hostiles Destroyed 58 | . . 7 . 17 9 4 . 7 14 . Melee 2 | . . . . . . . . . 2 . Guns 3 | . . . . . . . . . 3 . Cannons 35 | . . 7 . 15 1 1 . 4 7 . AOE 17 | . . . . 1 8 3 . 3 2 . Classes Destroyed 16 | 2 . 4 . 8 . . . 1 1 . Worker 5 | . . . . 2 . . . . 3 . Builder 4 | . . . . 2 . . . . 2 . Tunneler 4 | 4 . . . . . . . . . . Hauler 1 | . . . . 1 . . . . . . Recycler 5 | 1 . . . 1 . . . . 3 . Minesweeper 1 | . . . . . . . . 1 . . Operator 2 | . . . . 2 . . . . . . Watcher 2 | . . . . . . . . . 2 . Swarmer 18 | . . 2 . . 9 4 . 1 2 . Grunt 11 | . . . . 7 . . . 3 1 . Sentry 7 | . . . . 3 . . . 1 3 . Hunter 7 | . . . . 4 . . . 2 1 . Programmer 10 | . . . . 3 . . . . 7 . Artisan 1 | . . 1 . . . . . . . . Cobbler 1 | . . 1 . . . . . . . . Subdweller 5 | . . 5 . . . . . . . . Best Kill Streak 5 | 4 . 2 . 5 5 4 . 5 3 . Combat Bots Only 5 | . . 2 . 4 5 4 . 5 2 . Max Kills in Single Turn 3 | 1 . 1 . 1 3 2 . 1 2 . Gunslinging . | . . . . . . . . . . . Exploded 3 | . . . . 1 3 2 . 1 1 . Melee 1 | . . . . . . . . . 1 . Uniques/NPCs Destroyed . | . . . . . . . . . . . Combat | -11 -10 -10 -7 -5 -5 -5 -5 -4 -4 -4 -------- Run | Yrd Mat Sub Scr Fac Upp Upp Zhi Pro Fac Upp Hostile Shots Fired 608 | . . 39 . 144 22 9 . 40 346 8 Missed 185 | . . 13 . 42 8 2 . 18 100 2 Hits 423 | . . 26 . 102 14 7 . 22 246 6 Projectile 423 | . . 26 . 102 14 7 . 22 246 6 AOE 4 | . . 1 . 1 . . . . 2 . Critical Strikes 19 | . . . . 5 . . . . 14 . Part Disruptions 1 | . . . . . . . . . 1 . Damage Taken 8064 | . . 476 56 1949 247 159 . 403 4688 86 Core 1464 | . . 119 . 149 36 14 . 45 1027 74 Absorbed by Shields . | . . . . . . . . . . . Redirected to Shielding 66 | . . . . 66 . . . . . . Core Remaining (%) 75 | 100 . . 52 . . . . 75 . . Volleys Fired 254 | 10 . 45 . 67 9 3 25 21 73 1 Largest 3 | 2 . 2 . 3 3 2 1 3 3 1 Hottest 320 | 70 . 100 . 235 130 102 28 142 320 . Shots Fired 484 | 20 . 71 . 173 15 4 25 35 140 1 Gun 165 | 20 . 12 . 10 4 . 24 7 88 . Cannon 296 | . . 59 . 159 6 2 . 19 51 . Launcher 18 | . . . . 1 5 2 . 9 1 . Special 5 | . . . . 3 . . 1 . . 1 Kinetic 298 | 10 . 59 . 102 15 4 24 30 54 . Thermal 160 | 10 . . . 68 . . . . 82 . Explosive . | . . . . . . . . . . . Electromagnetic 21 | . . 12 . . . . . 5 4 . Piercing 1 | . . . . . . . . . . 1 Robot Hit Streak 26 | 8 . 11 . 19 2 4 26 8 13 . Robot Miss Streak 3 | 2 . 2 . 3 3 . 1 2 3 . Penetration Max 1 | . . . . 1 . . 1 . . . Secondary Targets . | . . . . . . . . . . . Shots Hit Robots 311 | 14 . 46 . 117 4 3 24 15 88 . Core Hits 167 | 6 . 17 . 43 14 8 14 20 45 . Critical Kills 2 | . . . . 2 . . . . . . Critical Parts Destroyed 2 | . . 1 . 1 . . . . . . Critical Strikes 18 | . . 2 . 9 . . . . 7 . Meltdown 1 | . . . . 1 . . . . . . Destroy 3 | . . 1 . 2 . . . . . . Blast 14 | . . 1 . 6 . . . . 7 . Melee Attacks 2 | . . . . . . . . . 2 . Impact . | . . . . . . . . . . . Slashing . | . . . . . . . . . . . Piercing . | . . . . . . . . . . . Sneak Attacks . | . . . . . . . . . . . Combat Hostiles . | . . . . . . . . . . . Follow-up Attacks . | . . . . . . . . . . . Damage Inflicted 11432 | 159 2 864 . 3807 633 249 488 1101 4129 . Guns 2797 | 159 . 166 . 159 23 . 488 146 1656 . Cannons 5901 | . . 659 . 3357 104 72 . 322 1387 . Explosions 2724 | . . 39 . 291 506 177 . 633 1078 . Melee . | . . . . . . . . . . . Ramming 10 | . 2 . . . . . . . 8 . Kinetic 6549 | 37 . 659 . 2010 633 249 488 990 1483 . Thermal 3419 | 122 . 39 . 1716 . . . . 1542 . Explosive 980 | . . . . . . . . . 980 . Electromagnetic 474 | . . 166 . 81 . . . 111 116 . Impact . | . . . . . . . . . . . Slashing . | . . . . . . . . . . . Piercing . | . . . . . . . . . . . Highest Corruption 10 | . . 1 1 2 . . . 10 9 7 Average Corruption 2 | . . 1 1 1 . . . 10 2 7 Corruption Purged 12 | . . . . 2 . . . . 10 . Corruption Blocked . | . . . . . . . . . . . Effects 54 | . . 6 4 1 . . . 18 20 5 Message Errors 16 | . . 1 1 . . . . 6 6 2 Matter Fused 13 | . . 2 . . . . . 4 5 2 Heat Flow Errors 2 | . . . 1 1 . . . . . . Energy Discharges 7 | . . . 1 . . . . 5 1 . Data Loss (minor) 10 | . . 3 1 . . . . 2 4 . Data Loss (major) 2 | . . . . . . . . . 1 1 Misfires 2 | . . . . . . . . 1 1 . Alerts 2 | . . . . . . . . . 2 . Overload Shots 1 | . . . . . . . . . 1 . Overflow Damage 140 | . . . . 110 3 . . 8 19 . Projectiles 115 | . . . . 101 . . . . 14 . Explosions 25 | . . . . 9 3 . . 8 5 . Melee . | . . . . . . . . . . . Knockbacks 35 | . . 9 . 13 . . . . 13 . Impact . | . . . . . . . . . . . Kinetic 33 | . . 9 . 13 . . . . 11 . Secondary 2 | . . . . . . . . . 2 . Self-Inflicted Damage 172 | . . . . . . 47 . 3 122 . Shots 4 | . . . . . . 1 . 1 2 . Rammed 11 | . 1 . . . . . . . 10 . Targets Rammed 13 | . 1 . . . . . . . 12 . Kicked . | . . . . . . . . . . . Crushed 2 | . . . . . . . . . 2 . Highest Temperature 541 | 90 . . 236 541 7 . . . 330 . Average Temperature 104 | 38 . . 123 121 6 . . . 105 . Received Heat Transfer 805 | . . 51 . 369 9 27 . 24 325 . Effects 8 | . . . . 5 . . . . 3 . Shutdowns 1 | . . . . 1 . . . . . . Interference 6 | . . . . 3 . . . . 3 . Matter Decay 1 | . . . . 1 . . . . . . Siege Activations . | . . . . . . . . . . . Martial Activations . | . . . . . . . . . . . Shielding Activations . | . . . . . . . . . . . Robots Disrupted 2 | . . . . 2 . . . . . . Combat Hostiles 2 | . . . . 2 . . . . . . Robots Corrupted . | . . . . . . . . . . . Combat Hostiles . | . . . . . . . . . . . Parts Fried 4 | . . 1 . . . . . 3 . . Impact Corruptions . | . . . . . . . . . . . Robots Melted 1 | . . . . 1 . . . . . . Combat Hostiles 1 | . . . . 1 . . . . . . Parts Melted 6 | 1 . 1 . 3 . . . . 1 . Heat Transferred 4460 | 370 . 50 . 2227 . . . . 1813 . Parts Sabotaged . | . . . . . . . . . . . Parts Stolen . | . . . . . . . . . . . Parts Stripped . | . . . . . . . . . . . Power Chain Reactions 1 | . . 1 . . . . . . . . Alert | -11 -10 -10 -7 -5 -5 -5 -5 -4 -4 -4 ------- Run | Yrd Mat Sub Scr Fac Upp Upp Zhi Pro Fac Upp Maximum Alert Level 1 | . . . . . . . . . 1 . Low Security (%) 80 | 100 100 . . 100 . . . . 54 . Level 1 19 | . . . . . . . . . 45 . Level 2 . | . . . . . . . . . . . Level 3 . | . . . . . . . . . . . Level 4 . | . . . . . . . . . . . Level 5 . | . . . . . . . . . . . High Security . | . . . . . . . . . . . Max Security . | . . . . . . . . . . . Peak Influence 374 | 10 7 . . 161 . . . . 374 . Initial . | . . . . . . . . . . . Average 104 | . . . . 70 . . . . 176 . Influence Increases 2369 | 25 11 95 . 635 264 120 15 155 1034 15 Destroy 0b10 Robot/C 1080 | . . 40 . 340 200 80 . 140 280 . Destroy 0b10 Robot/NC 135 | 25 . . . 40 . . 15 5 50 . Destroy Leader 196 | . . 10 . 72 20 10 . 10 74 . Allied During Kill 50 | . . . . 6 44 . . . . . Successful Hack 23 | . 11 . . 12 . . . . . . Disable Machine 225 | . . . . 45 . . . . 180 . Destroy Structure 300 | . . . . 120 . . . . 180 . Partial Spotted 30 | . . . . . . . . . 30 . Lose Combat Pursuer 330 | . . 45 . . . 30 . . 240 15 Influence Decreases 2170 | 25 11 95 . 488 411 90 45 155 660 190 Entered New Map 226 | . . . . . 56 . 30 . . 140 Time Decay 1563 | 25 11 95 . 378 355 80 15 145 409 50 Lost Part 381 | . . . . 110 . 10 . 10 251 . Squads Dispatched 16 | . . . . 5 . . . . 11 . Investigation 4 | . . . . 1 . . . . 3 . Extermination 6 | . . . . 2 . . . . 4 . Reinforcement 6 | . . . . 2 . . . . 4 . Assault . | . . . . . . . . . . . Garrison . | . . . . . . . . . . . Intercept . | . . . . . . . . . . . Searches Triggered . | . . . . . . . . . . . Construction Impeded . | . . . . . . . . . . . Haulers Reinforced . | . . . . . . . . . . . Active Scanning Responses . | . . . . . . . . . . . Cargo Convoy Interrupts . | . . . . . . . . . . . Stealth | -11 -10 -10 -7 -5 -5 -5 -5 -4 -4 -4 --------- Run | Yrd Mat Sub Scr Fac Upp Upp Zhi Pro Fac Upp Distress Signals 4 | . . . . . . . . . 4 . Communications Jammed 2 | . . . . . . . . . 2 . Distress Signals 2 | . . . . . . . . . 2 . Times Spotted 124 | . 3 18 . 22 5 9 . 7 54 6 Peak Tracking Total 11 | . 1 6 . 4 4 5 . 3 11 6 Tactical Retreats 13 | . . 2 . . . 1 . . 9 1 Traps | -11 -10 -10 -7 -5 -5 -5 -5 -4 -4 -4 ------- Run | Yrd Mat Sub Scr Fac Upp Upp Zhi Pro Fac Upp Traps Triggered 2 | . . . 1 . . . . . 1 . Indirectly . | . . . . . . . . . . . Trap Hack Attempts . | . . . . . . . . . . . Triggered . | . . . . . . . . . . . Disarmed . | . . . . . . . . . . . Reprogrammed . | . . . . . . . . . . . Reused . | . . . . . . . . . . . Traps Extracted . | . . . . . . . . . . . Installed 1 | . . . 1 . . . . . . . Triggered . | . . . . . . . . . . . Most Traps Carried 1 | . . 1 1 . . . . . . . Machines | -11 -10 -10 -7 -5 -5 -5 -5 -4 -4 -4 ---------- Run | Yrd Mat Sub Scr Fac Upp Upp Zhi Pro Fac Upp Machines Disabled 15 | . . . . 3 . . . . 12 . Max in Single Turn 2 | . . . . 1 . . . . 2 . Garrison Access 1 | . . . . 1 . . . . . . Machines Repaired . | . . . . . . . . . . . Machines Dismantled . | . . . . . . . . . . . Machines Sabotaged . | . . . . . . . . . . . Overloaded Fab Kills . | . . . . . . . . . . . Hacking | -11 -10 -10 -7 -5 -5 -5 -5 -4 -4 -4 --------- Run | Yrd Mat Sub Scr Fac Upp Upp Zhi Pro Fac Upp Machines Accessed 19 | . 2 . . 6 . 1 5 . 5 . Terminals 7 | . 2 . . 3 . . . . 2 . Fabricators 4 | . . . . 1 . . . . 3 . Repair Stations . | . . . . . . . . . . . Recycling Units . | . . . . . . . . . . . Scanalyzers 1 | . . . . 1 . . . . . . Garrison Access 1 | . . . . 1 . . . . . . Total Hacks 52 | . 5 . . 15 . 1 18 . 13 . Successful 29 | . 2 . . 3 . 1 18 . 5 . Failed 23 | . 3 . . 12 . . . . 8 . Catastrophic 6 | . 2 . . 2 . . . . 2 . Database Lockouts . | . . . . . . . . . . . Manual 17 | . 5 . . 7 . . . . 5 . Terminals 18 | . 5 . . 10 . . . . 3 . Fabricators 12 | . . . . 2 . . . . 10 . Repair Stations . | . . . . . . . . . . . Recycling Units . | . . . . . . . . . . . Scanalyzers 1 | . . . . 1 . . . . . . Garrison Access 2 | . . . . 2 . . . . . . Terminal Hacks 21 | . 1 . . 1 . 1 18 . . . Record 6 | . . . . . . . 6 . . . Part Schematic 5 | . 1 . . . . . 4 . . . Robot Analysis 4 | . . . . . . . 4 . . . Prototype ID Bank 4 | . . . . . . . 4 . . . Open Door 1 | . . . . . . 1 . . . . Terminal Index 1 | . . . . 1 . . . . . . Fabricator Hacks 4 | . . . . . . . . . 4 . Load Schematic 3 | . . . . . . . . . 3 . Build 1 | . . . . . . . . . 1 . Repair Station Hacks . | . . . . . . . . . . . Recycling Unit Hacks . | . . . . . . . . . . . Scanalyzer 1 | . . . . 1 . . . . . . Insert Component 1 | . . . . 1 . . . . . . Garrison Access Hacks 1 | . . . . 1 . . . . . . Seal Access 1 | . . . . 1 . . . . . . Unauthorized Hacks 2 | . 1 . . . . . . . 1 . Terminals 1 | . 1 . . . . . . . . . Skim 1 | . 1 . . . . . . . . . Fabricators 1 | . . . . . . . . . 1 . Recompile 1 | . . . . . . . . . 1 . Repair Stations . | . . . . . . . . . . . Recycling Units . | . . . . . . . . . . . Scanalyzers . | . . . . . . . . . . . Garrison Access . | . . . . . . . . . . . Data Cores Recovered . | . . . . . . . . . . . Used . | . . . . . . . . . . . Hacking Detections 11 | . 2 . . 4 . . . . 5 . Full Trace Events 4 | . 1 . . 1 . . . . 2 . Feedback Events 1 | . . . . . . . . . 1 . Corruption 1 | . . . . . . . . . 1 . Feedback Blocked . | . . . . . . . . . . . Robot Schematics Acquired . | . . . . . . . . . . . Robots Built . | . . . . . . . . . . . Authchips . | . . . . . . . . . . . Time . | . . . . . . . . . . . Total Robot Build Rating . | . . . . . . . . . . . Part Schematics Acquired 6 | . 1 . 1 . . . 4 . . . Parts Built 1 | . . . . . . . . . 1 . Authchips 1 | . . . . . . . . . 1 . Time 76 | . . . . . . . . . 76 . Total Part Build Rating 5 | . . . . . . . . . 5 . Parts Repaired . | . . . . . . . . . . . Time . | . . . . . . . . . . . Parts Recycled . | . . . . . . . . . . . Recycled Matter . | . . . . . . . . . . . Retrieved Matter . | . . . . . . . . . . . Retrieved Components . | . . . . . . . . . . . Parts Scanalyzed . | . . . . . . . . . . . Part Schematics Acquired . | . . . . . . . . . . . Parts Damaged . | . . . . . . . . . . . Bothacking | -11 -10 -10 -7 -5 -5 -5 -5 -4 -4 -4 ------------ Run | Yrd Mat Sub Scr Fac Upp Upp Zhi Pro Fac Upp Used RIF Installer . | . . . . . . . . . . . Robots Hacked 1 | . . . . 1 . . . . . . Non-combat 1 | . . . . 1 . . . . . . Combat . | . . . . . . . . . . . Robot Hacks Applied 1 | . . . . 1 . . . . . . find_chute 1 | . . . . 1 . . . . . . Relay Couplers Released . | . . . . . . . . . . . Fabnet Peak Effective % . | . . . . . . . . . . . Robots Rewired 2 | . . . . 2 . . . . . . Allies Hacked 1 | . . . . . 1 . . . . . Hacks Repelled . | . . . . . . . . . . . Allies | -11 -10 -10 -7 -5 -5 -5 -5 -4 -4 -4 -------- Run | Yrd Mat Sub Scr Fac Upp Upp Zhi Pro Fac Upp Total Allies 2 | . . . . 2 . . . . . . Largest Group 2 | . . . . 2 2 . . . . . Highest-Rated Group 71 | . . . . 71 71 . . . . . Highest-Rated Ally 47 | . . . . 47 47 . . . . . Total Orders . | . . . . . . . . . . . Ally Attacks 12 | . . . . 2 10 . . . . . Total Damage 222 | . . . . 58 164 . . . . . Kills 1 | . . . . . 1 . . . . . Allies Corrupted . | . . . . . . . . . . . Allies Melted . | . . . . . . . . . . . Intel | -11 -10 -10 -7 -5 -5 -5 -5 -4 -4 -4 ------- Run | Yrd Mat Sub Scr Fac Upp Upp Zhi Pro Fac Upp Active Infowar (turns) 11423 | 44 441 1920 1678 1393 1414 877 782 1241 1525 108 Sensors 5399 | . . . . 540 1414 877 782 1241 545 . Traps 225 | . . . . . . . . . 225 . Seismic 4986 | 44 441 1920 1678 903 . . . . . . Machine Analysis 3188 | . . . . . . . 314 1241 1525 108 Jamming 276 | . . . . . . . . . 276 . Robot Analysis Total 4 | . . . . . . . 4 . . . Derelict Logs Recovered 9 | . . . 2 . 2 2 . 1 . 2 Drone Launches . | . . . . . . . . . . . Drone Recoveries . | . . . . . . . . . . . Exploration | -11 -10 -10 -7 -5 -5 -5 -5 -4 -4 -4 ------------- Run | Yrd Mat Sub Scr Fac Upp Upp Zhi Pro Fac Upp Turns Passed 13781 | 170 441 2496 3296 1409 1423 877 782 1241 1538 108 Spaces Moved 8848 | 81 266 1265 1753 849 1091 689 536 713 1420 185 Core 601 | 9 . . . . . . . . 407 185 Treads 2651 | 72 266 1265 1044 2 . . . . 2 . Legs 26 | . . . . . . . . . 26 . Wheels 4893 | . . . 709 847 1091 689 536 713 308 . Hover 677 | . . . . . . . . . 677 . Flight . | . . . . . . . . . . . Fastest Speed 40 | 50 160 160 160 110 125 125 110 125 40 50 Average Speed 135 | 147 160 160 184 124 125 125 124 164 71 50 Slowest Speed 560 | 160 160 160 560 240 125 125 125 230 250 50 Overloaded Moves . | . . . . . . . . . . . Propulsion Burnouts . | . . . . . . . . . . . Robots Hopped . | . . . . . . . . . . . Potential Cave-ins . | . . . . . . . . . . . Cave-ins Triggered . | . . . . . . . . . . . Teleports 1 | . . . . . . . . . 1 . Exploration Rate (%) 48 | 6 46 34 59 18 93 70 62 83 32 35 Regions Visited 10 Branch Regions 7 Pre-discovered Areas 5 | . . . 1 . 1 . 3 . . . Known Exits Taken 6 | . . . . 1 1 1 1 1 1 . Unknown Exits Taken 4 | 1 1 1 1 . . . . . . . Scrap Searched 20 | . . 3 8 . 5 1 . 3 . . Spaces Dug 8 | . . . . . . . . . 7 1 Terrain Destroyed 357 | . . 4 . 63 73 27 . 98 91 1 Melee . | . . . . . . . . . . . Projectile 82 | . . . . 45 3 . . 10 23 1 AOE 275 | . . 4 . 18 70 27 . 88 68 . Terrain Rammed . | . . . . . . . . . . . Walls Destroyed . | . . . . . . . . . . . Machines Disabled . | . . . . . . . . . . . Actions | -11 -10 -10 -7 -5 -5 -5 -5 -4 -4 -4 --------- Run | Yrd Mat Sub Scr Fac Upp Upp Zhi Pro Fac Upp Total 10184 | 110 282 1674 1825 1070 1139 700 633 748 1804 199 Wait 594 | 3 2 311 4 46 16 . . 11 191 10 Move 8838 | 80 265 1264 1752 848 1090 688 535 712 1419 185 Hop . | . . . . . . . . . . . Pick Up 151 | 9 7 20 41 30 5 3 22 . 14 . Fast Attach 87 | 6 2 . 5 18 4 . 12 1 38 1 Attach 40 | 1 . 4 1 17 1 1 2 . 13 . Detach 14 | . . . 1 4 . . 2 . 6 1 Swap 45 | 1 1 8 3 13 5 3 2 3 6 . Drop 145 | . 4 22 17 27 9 2 33 . 30 1 Fire 254 | 10 . 45 . 67 9 3 25 21 73 1 Melee 2 | . . . . . . . . . 2 . Ram 1 | . . . . . . . . . 1 . Kick . | . . . . . . . . . . . Crush 12 | . 1 . . . . . . . 11 . Escape Stasis . | . . . . . . . . . . . Rewire . | . . . . . . . . . . . Trap 1 | . . . 1 . . . . . . . Miscellaneous . | . . . . . . . . . . . Route ------- -11/Scrapyard -10/Materials (discovered 3 exits: [*Mat] / [*Min] / [*Sub]) -10/Subcaves -7/Scraptown -5/Factory -5/Upper Caves -5/Upper Caves (discovered 2 exits: *Fac / *Zhi) -5/Zhirov -4/Proximity Caves -4/Factory (discovered 3 exits: Res / *Upp / Arm) -4/Upper Caves History --------- Turn | Location | Event 4 | -11/Scrapyard | Discovered new exit (range 16) 171 | -11/Scrapyard | Entered Materials 172 | -10/Materials | Met a group of wandering Federalists 284 | -10/Materials | Discovered new exit (range 5) 314 | -10/Materials | Build established: Mutant 340 | -10/Materials | Discovered new exit (range 5) 515 | -10/Materials | Discovered new exit (range 7) 612 | -10/Materials | Entered Subcaves 613 | -10/Subcaves | Continued accompanying wandering Federalists (5) 635 | -10/Subcaves | A Subdweller sparked back to life 635 | -10/Subcaves | A Subdweller sparked back to life 635 | -10/Subcaves | A Subdweller sparked back to life 649 | -10/Subcaves | Found Prototype Power Core 816 | -10/Subcaves | Wandering Federalist uncovered a shortcut to Scraptown 1084 | -10/Subcaves | Ambushed by angry Subdweller bent on revenge 3108 | -10/Subcaves | Entered Scraptown 3156 | -7/Scraptown | Visited Assassins FH 3181 | -7/Scraptown | Visited Cave Peace 3211 | -7/Scraptown | Visited SPCMW 3229 | -7/Scraptown | Visited Shadow of the Wyrm 3262 | -7/Scraptown | Visited TADAMA 3305 | -7/Scraptown | Visited Bundlers 3320 | -7/Scraptown | Heard Great Nut preacher, LISTEN AND RECITE! 3342 | -7/Scraptown | Visited IN-MT5's Study 3360 | -7/Scraptown | Warned about trapping Scraptown 3761 | -7/Scraptown | System corruption cleaned by C-Scrubber 4233 | -7/Scraptown | Scanned Subdweller tech in exchange for log data 4236 | -7/Scraptown | Learned location of Testing (-3) 4237 | -7/Scraptown | Learned Research terminal intel 4261 | -7/Scraptown | Discovered new exit (range 5) 5095 | -7/Scraptown | Build established: Hauler-Mutant 6404 | -7/Scraptown | Entered Factory 6404 | -5/Factory | Evolved 10 slots: Power x1, Propulsion x2, Utility x6, Weapon x1 6766 | -5/Factory | Build established: Derelict-Tank 7145 | -5/Factory | Lost 3 parts (1p2u) 7217 | -5/Factory | Lost 4 parts (4n) 7289 | -5/Factory | Lost 4 parts (1n2u1w) 7478 | -5/Factory | Identified Meta Core 7558 | -5/Factory | Build established: Scavenger-Gunner 7592 | -5/Factory | Allied Derelicts emerged from ambush trap array 7769 | -5/Factory | Discovered new exit (range 7) 7775 | -5/Factory | Identified exit to Upper Caves 7813 | -5/Factory | Entered Upper Caves 7813 | -5/Upper Caves | Accompanied by 2 allies 8009 | -5/Upper Caves | Build established: Scavenger-Mutant 8337 | -5/Upper Caves | Learned location of 1 exit from Proximity Caves 8338 | -5/Upper Caves | Found DCF Scrap (9 items) 8564 | -5/Upper Caves | Build established: Scavenger-Tank 9084 | -5/Upper Caves | Learned location of Armory (-4) 9086 | -5/Upper Caves | Attracted the attention of an 0b10 checkpoint 9204 | -5/Upper Caves | Discovered new exit (range 16) 9229 | -5/Upper Caves | Identified exit to Upper Caves 9236 | -5/Upper Caves | Entered another Upper Caves area 9246 | -5/Upper Caves | Encountered a Warlord checkpoint 9288 | -5/Upper Caves | Discovered new exit (range 4) 9290 | -5/Upper Caves | Identified exit to Factory 9919 | -5/Upper Caves | Learned 8 Factory zone layouts 10038 | -5/Upper Caves | Discovered new exit (range 10) 10104 | -5/Upper Caves | Identified exit to Zhirov 10113 | -5/Upper Caves | Entered Zhirov 10113 | -5/Zhirov | Discovered new exit (range 3) 10165 | -5/Zhirov | Learned location of Quarantine (-2) 10165 | -5/Zhirov | Learned location of Command (-1) 10195 | -5/Zhirov | Found Alien Artifact 10195 | -5/Zhirov | Identified Integrated Reactor 10195 | -5/Zhirov | Installed Integrated Reactor, increased core energy generation (+10) 10619 | -5/Zhirov | Found Alien Artifact 10783 | -5/Zhirov | Identified exit to Proximity Caves 10805 | -5/Zhirov | Build established: Scavenger-Skirmisher 10895 | -5/Zhirov | Entered Proximity Caves 11181 | -4/Proximity Caves | Spotted B-86 Titan 11244 | -4/Proximity Caves | Attracted the attention of an 0b10 checkpoint 11545 | -4/Proximity Caves | Build established: Skirmisher 11672 | -4/Proximity Caves | System corruption reached 10% 11977 | -4/Proximity Caves | Build established: Scavenger-Skirmisher 12136 | -4/Proximity Caves | Entered Factory 12136 | -4/Factory | Evolved 2 slots: Propulsion x1, Utility x1 12137 | -4/Factory | Identified exit to Armory 12138 | -4/Factory | Identified exit to Research 12652 | -4/Factory | Lost 3 parts (3n) 12671 | -4/Factory | Identified Transdimensional Reconstructor 12671 | -4/Factory | Warped through subspace 12726 | -4/Factory | Lost 13 parts (1p2n4u6w) 13185 | -4/Factory | Core integrity fell below 50% 13243 | -4/Factory | Lost 3 parts (2p1n) 13436 | -4/Factory | Spotted B-86 Titan 13594 | -4/Factory | Fabricated IN-MT5's Pitchfork "Insurrection" (x1) 13639 | -4/Factory | Core integrity fell below 20% 13667 | -4/Factory | Lost 6 parts (1p3n1u1w) 13670 | -4/Factory | Discovered new exit (range 5) 13672 | -4/Factory | Identified exit to Upper Caves 13674 | -4/Factory | Entered Upper Caves 13721 | -4/Upper Caves | Learned Research machine intel 13764 | -4/Upper Caves | Learned Research trap positions 13782 | -4/Upper Caves | Destroyed by S-27 Virus with Autogun Last Messages --------------- 13670_ EXIT=FOUND 13672_ EXIT=IDENTIFIED: UPPER CAVES 13672_ Acquired Adv. Coolant Injector. 13674_ System corrupted: Matter fused (-9). LOCATION=UPPER CAVES GOAL=ESCAPE 13674_ Dropped IN-MT5's Pitchfork "Insurrection". 13675_ Acquired IN-MT5's Pitchfork "Insurrection". 13693_ System corrupted: Matter fused (-10). 13721_ Acquired derelict log, extracted data. Data stored: Research machine intel. 13724_ System corrupted: Substantial component data lost. 13740_ System corrupted: Matter fused (-9). 13756_ W7G|SW%OHAPA/ES3WU> K FTXOOIR,=NM9 13764_ Acquired derelict log, extracted data. Data stored: Research trap records. 13772_ O,|VVR&5G#/JMEILN ZR3PMXE1KQQ 13774_ FR-YLN(k) destroyed. 13774_ ZD-TA5(k) breaks down the debris. 13775_ ZD-TA5(k) destroyed. Map ----- +----------------------------------------------------+ | ?????????????????????????????????????????????????? | | ?????????????????????????????????????????????????? | | ?????????????????????????????????????????????????? | | ?????????????????????????????????????????????????? | | ?????????????????????????????????????????????????? | | ?????????????????????????????????????????????????? | | ?????????????????????????????????????????????????# | | ?????????????????????????????????????????????????# | | ???????????????????????????????????????????####### | | ??????????????????????????????????????????## | | ??????????????????????????????????????????# | | ??????????????????????????????????????????## #### | | ?????????????????? ????????????????????????# #??? | | ???????????????? ???????????????????????# ##?? | | ????????????????? ?###???????????????????# #?? | | ?????????????????? # ???????????????????# #?? | | ?????????????????? # ???????????????????# ### | | ??????????????????? ?????????????####### # | | ???????????????????? ####?????# ## | | ????????????????????? ??????????######## ##? | | ????????????????????? ?????????????????# #?? | | ?????????????????????? ?????????????????# #?? | | ??????????????????????? ???????????????### ## | | ???????????????????????# #????###???????## # | | ???????????????????????# #???## ######### # | | ???????????????????????# @#??## = | | ???????????????????????# #?## ! %= | | ???????????????????????# #?# ####### ## | | ???????????????????????# ### ##?????# #?## | | ???????????????????????# s## ##?????# #?? | | ???????????????????????# #?????## #? | | ???????????????????????# % %### #? | | ???????????????????????##### % %#?# ##? | | ???????????????????????????# ##?# #?? | | ???????????????????????????# % %## ##??# ?? | | ???????????????????????????# ##??#??? # ? | | ???????????????????????????## ####??????? ## # | | ????????????????????????????####??????????# #? # | | ??????????????????????????????????????????? #?? | | ??????????????????????????????????????????? ???? | | ????????????????????????????????????????????#????? | | ?????????????????????????????????????????????????? | | ?????????????????????????????????????????????????? | | ?????????????????????????????????????????????????? | | ?????????????????????????????????????????????????? | | ?????????????????????????????????????????????????? | | ?????????????????????????????????????????????????? | | ?????????????????????????????????????????????????? | | ?????????????????????????????????????????????????? | | ?????????????????????????????????????????????????? | +----------------------------------------------------+ Best States ------------- Heat Dissipation 74 Coolant Potential 180 Energy Generation 51 Energy Capacity 950 Matter Stores 300 Matter Capacity 300 Sight Range 16 Robot Scan Range 15 Terrain Scan Density 85 Jamming Range 16 Base Temperature (-) 200 Armor Coverage 825 Resistance: EM 25 Utility Shielding 66 Evasion (%) 57 Targeting Accuracy 10 Recoil Reduction 4 Offensive Hacking 14 Defensive Hacking 14 Authchip Count 1 Item Schematics ----------------- Hcp. Storage Unit | -10/Materials | Hacked IN-MT5's Pitchfork "Insurrection" | -7/Scraptown | Archive Assault Drone Bay | -5/Zhirov | Free Exp. Heat Sink | -5/Zhirov | Free Exp. Optical Array | -5/Zhirov | Free Imp. Arc Thrower | -5/Zhirov | Free Robot Schematics ------------------ None Fabricated ------------ IN-MT5's Pitchfork "Insurrection" | x1 | -4/Factory | Authchip Repaired ---------- Nothing Alien Tech Used ----------------- Integrated Reactor Transdimensional Reconstructor Achievements -------------- None Challenges ------------ None Game ------ Seed HeavyFortressSaw Manual? 0 Play Time 02:02:26 Cumulative 503.2 hours Start 2025.05.13 @ 13:02:28 End 2025.05.14 @ 00:09:14 Sessions 3 Manual Loads 0 Difficulty Rogue Special Mode None Game No. 305 Rogue 280 Adventurer 7 Explorer 18 Win Type - Total 39 Types 25/0/6/2/0/1/1/2/0/2 Lore% 93 Gallery% 89 Achievement% 80 Wizard Run 0 Options --------- Layout 0 ASCII 0 Keyboard 0 Movement Numpad Keybinds 0 Fullscreen 1 Font 12/Smallcaps Map View 83x54 Zoom Use 0% Tactical HUD 1 Map Filters NONE Filters NONE Steam 1 RUN: ef06c3cf-47c2-4465-9070-9daa019a7392